bitfinex-derivatives/quotes_ETHF0:USTF0_20250602
["timestamp","ask_amount","ask_price","bid_price","bid_amount"]
[1748884443649,0.78646,2541.8,2541.7,4.111]
[1748884443840,1.37656,2541.8,2541.7,4.89749]
[1748884447439,1.37656,2541.8,2541.7,4.111]
[1748884447639,0.78655,2541.5,2541.4,0.6219]
[1748884447837,0.5901,2541.8,2541.6,0.78649]
[1748884448048,0.78652,2541.7,2541.6,0.78649]
[1748884449151,0.5901,2541.8,2541.7,0.78649]
[1748884449152,1.37658,2541.8,2541.7,0.78649]
[1748884449951,0.5901,2541.8,2541.7,0.78649]
[1748884450252,1.37656,2541.8,2541.7,0.78649]
[1748884451245,0.5901,2541.8,2541.7,0.78649]
[1748884451450,0.5901,2541.8,2541.7,1.41259]
[1748884451846,1.37656,2541.8,2541.7,1.41259]
[1748884452352,0.5901,2541.8,2541.7,1.41259]
[1748884452761,0.78649,2541.7,2541.6,3.99432]
[1748884453054,0.78649,2541.7,2541.6,3.2078]
[1748884453348,0.78649,2541.7,2541.4,4.7319]
[1748884453349,0.78655,2541.5,2541.4,4.7319]
[1748884453556,0.78655,2541.5,2541.4,4.11]
[1748884453752,5.1119,2541.6,2541.1,4.11]
[1748884453942,3.75558412,2541.6,2541.2,1.96663]
[1748884454147,1.40776,2541.6,2541.5,0.78655]
[1748884454953,0.7866,2541.5,2541.4,0.78656]
[1748884457759,1.96624,2541.7,2541.3,4.11]
[1748884457760,0.78659,2541.4,2541.3,4.11]
[1748884457953,0.78659,2541.4,2541.3,4.89662]
[1748884458149,0.78657,2541.5,2541.4,0.78655]
[1748884459457,0.78655,2541.6,2541.5,0.78655]
[1748884459854,0.78654,2541.6,2541.5,0.78652]
[1748884460254,0.78654,2541.6,2541.5,2.02642]
[1748884460556,0.78651,2541.7,2541.6,0.78649]
[1748884460961,0.78652,2541.6,2541.5,1.2399]
[1748884461153,0.78655,2541.5,2541.4,0.6388]
[1748884462758,0.78655,2541.5,2541.4,1.42539]
[1748884463459,0.78655,2541.5,2541.4,0.6388]
[1748884463849,0.78662,2541.3,2541.2,3.99443]
[1748884464253,0.78659,2541.5,2541.4,0.78655]
[1748884465653,3.92097412,2541.5,2541.4,0.78655]
[1748884466163,0.78659,2541.4,2541.3,2.07219]
[1748884467863,1.37679,2541.4,2541.3,2.07219]
[1748884469161,0.5902,2541.4,2541.3,2.07219]
[1748884471273,1.37679,2541.4,2541.3,1.2856]
[1748884471458,1.37679,2541.4,2541.3,2.07222]
[1748884472757,0.5902,2541.4,2541.3,2.07222]
[1748884474065,3.13438412,2541.7,2541.6,0.78652]
[1748884474360,3.13438412,2541.8,2541.7,0.78649]
[1748884474560,3.13438412,2541.8,2541.7,2.69579]
[1748884474967,3.13438412,2541.8,2541.7,6.80179]
[1748884475263,0.78646,2541.9,2541.8,0.78646]
[1748884475563,4.40008412,2542.2,2541.8,2.04146]
[1748884475866,0.78642,2542.0,2541.9,0.78639]
[1748884476166,0.7864,2542.1,2542.0,0.78638]
[1748884480867,0.7864,2542.0,2541.9,3.99421]
[1748884481070,0.78643,2541.9,2541.8,0.78646]
[1748884481269,0.78644,2542.0,2541.9,0.78641]
[1748884482073,0.78645,2542.0,2541.9,0.78641]
[1748884482572,0.78646,2541.9,2541.8,0.78644]
[1748884482869,0.78646,2541.8,2541.7,4.89247]
[1748884483373,1.3125,2542.1,2541.7,4.106]
[1748884483573,1.3125,2542.1,2542.0,0.78637]
[1748884483574,0.78639,2542.1,2542.0,0.78637]
[1748884484270,0.78644,2542.0,2541.9,0.78641]
[1748884485177,0.7864,2542.1,2542.0,0.78637]
[1748884489074,0.78646,2541.9,2541.8,0.78642]
[1748884489373,3.92361009,2541.9,2541.8,0.78642]
[1748884489981,3.13718009,2541.9,2541.8,0.78642]
[1748884490273,0.78643,2541.9,2541.8,2.06532]
[1748884491481,3.92361009,2541.9,2541.8,2.06532]
[1748884492172,0.78643,2541.9,2541.8,2.06532]
[1748884492675,3.92361009,2541.9,2541.8,2.06532]
[1748884493872,3.92361009,2541.9,2541.8,2.68012]
[1748884494368,3.13718009,2541.9,2541.8,2.68012]
[1748884494671,3.92361009,2541.9,2541.8,0.78642]
[1748884495177,0.78646,2541.8,2541.7,1.40827]
[1748884495373,3.92528189,2541.8,2541.7,1.40827]
[1748884495575,0.78646,2541.8,2541.7,2.75037]
[1748884496878,1.46266,2541.9,2541.8,0.78646]
[1748884497074,0.78646,2541.8,2541.7,1.40827]
[1748884498778,0.78646,2541.8,2540.9,1.55834277]
[1748884498779,3.2078,2541.8,2541.3,0.78658]
[1748884498983,0.78661,2541.4,2541.3,0.78658]
[1748884499290,0.78658,2541.5,2541.4,0.78656]
[1748884499670,0.78659,2541.4,2541.3,2.09909]
[1748884500080,0.78658,2541.5,2541.4,0.78656]
[1748884500375,3.91864,2541.7,2541.6,0.78652]
[1748884500376,3.14136193,2541.7,2541.6,0.78652]
[1748884500586,3.14136193,2542.0,2541.9,0.78643]
[1748884500770,4.57177499,2542.3,2541.7,1.9662]
[1748884500771,3.14136193,2542.1,2542.0,0.7864]
[1748884501083,0.78637,2542.1,2542.0,4.89237]
[1748884505686,0.78636,2542.2,2542.1,0.78634]
[1748884505986,0.78636,2542.2,2542.1,2.01644]
[1748884506175,3.14725677,2542.3,2542.1,1.2301]
[1748884506376,0.79221484,2542.3,2542.2,2.01644]
[1748884506585,0.00589484,2542.3,2542.2,2.01644]
[1748884507385,0.79220484,2542.3,2542.2,1.2301]
[1748884507780,0.78637,2542.1,2542.0,0.78638]
[1748884508083,0.78637,2542.1,2542.0,4.099]
[1748884508274,0.7864,2542.0,2541.9,5.3334]
[1748884508474,0.78652,2541.6,2541.5,7.3068]
[1748884508680,0.78651,2541.7,2541.6,0.78648]
[1748884509087,0.78652,2541.6,2541.5,6.11995]
[1748884509286,0.78652,2541.6,2541.5,5.3334]
[1748884509784,0.78652,2541.6,2541.5,6.11995]
[1748884509981,0.78652,2541.6,2541.5,5.3334]
[1748884510582,0.78652,2541.6,2541.5,6.11995]
[1748884512595,0.78652,2541.6,2541.5,5.3334]
[1748884513592,0.78652,2541.6,2541.5,1.2344]
[1748884513795,0.78652,2541.6,2541.5,5.3334]
[1748884513995,0.78652,2541.6,2541.5,6.11995]
[1748884514181,0.78652,2541.6,2541.3,0.6385]
[1748884514182,0.78658,2541.4,2541.3,0.6385]
[1748884514502,0.78662,2541.3,2541.2,3.2078]
[1748884514689,1.96662,2541.2,2540.8,9.1891]
[1748884514989,0.78671,2541.0,2540.9,1.2438]
[1748884515186,0.78674,2540.9,2540.8,4.7375]
[1748884515995,0.78674,2540.9,2540.8,5.52427]
[1748884516183,0.78674,2540.9,2540.8,4.7375]
[1748884516786,0.78674,2540.9,2540.6,5.81719818]
[1748884516787,0.7868,2540.7,2540.6,1.16829818]
[1748884516981,0.7868,2540.7,2540.6,1.95512818]
[1748884517187,0.7868,2540.7,2540.6,1.16829818]
[1748884517387,0.7868,2540.7,2540.6,1.95512818]
[1748884517582,0.7868,2540.7,2540.6,1.16829818]
[1748884518088,0.7868,2540.7,2540.6,1.95512818]
[1748884518286,0.78679,2540.8,2540.7,0.7868]
[1748884518681,0.78679,2540.8,2540.7,2.089]
[1748884519489,0.79264484,2540.9,2540.8,0.78677]
[1748884519793,0.79264484,2540.9,2540.8,1.46047]
[1748884519992,0.00589484,2540.9,2540.8,1.46047]
[1748884520181,0.79263484,2540.9,2540.8,1.46047]
[1748884520986,0.79263484,2540.9,2540.8,0.6737]
[1748884521388,1.97277484,2540.9,2540.6,1.16829818]
[1748884521691,0.7868,2540.7,2540.6,1.16829818]
[1748884521894,3.13804685,2540.7,2540.6,1.16829818]
[1748884522097,10.75204685,2540.7,2540.6,1.16829818]
[1748884522793,8.4008,2540.7,2540.6,1.16829818]
[1748884523492,5.7469724,2540.7,2540.6,1.16829818]
[1748884523792,3.4008,2540.7,2540.6,1.16829818]
[1748884523998,24.18697097,2540.7,2540.6,1.16829818]
[1748884524295,24.18608681,2540.7,2540.6,1.16829818]
[1748884525690,21.8408,2540.7,2540.6,1.16829818]
[1748884526001,0.5903,2540.7,2540.6,1.95512818]
[1748884526699,0.5903,2540.7,2540.6,3.22452818]
[1748884526888,0.5903,2540.7,2540.6,10.53332818]
[1748884527395,0.5903,2540.7,2540.6,15.53332818]
[1748884528498,0.00589484,2540.9,2540.8,0.78677]
[1748884529895,0.00589484,2540.9,2540.8,4.88777]
[1748884530597,0.79263484,2540.9,2540.8,4.88777]
[1748884530900,0.00589484,2540.9,2540.8,4.88777]
[1748884531096,0.79263484,2540.9,2540.8,4.88777]
[1748884531292,0.00589484,2540.9,2540.8,4.88777]
[1748884535400,4.84e-06,2540.9,2540.8,9.88777]
[1748884535593,4.84e-06,2540.9,2540.8,10.52007]
[1748884535791,2.34528681,2541.5,2541.1,1.96666]
[1748884535996,3.13183681,2541.5,2541.4,0.78659]
[1748884536799,0.78659,2541.4,2541.3,2.1464]
[1748884537300,3.1340121,2541.4,2541.3,2.1464]
[1748884537490,0.78658,2541.5,2541.4,0.78655]
[1748884537691,5.33364,2541.6,2541.5,0.78655]
[1748884538301,8.47500193,2541.6,2541.5,0.78655]
[1748884539002,0.78659,2541.5,2541.4,0.78656]
[1748884539200,8.47502193,2541.6,2541.5,0.78655]
[1748884540207,5.26722193,2541.6,2541.5,0.78655]
[1748884540902,3.14725677,2541.7,2541.6,0.78652]
[1748884541201,3.14725677,2541.7,2541.6,4.87952]
[1748884541202,3.93374677,2541.7,2541.6,4.87952]
[1748884541402,3.93374677,2541.7,2541.6,4.093]
[1748884542002,3.14725677,2541.7,2541.6,4.87952]
[1748884542198,3.14725677,2541.7,2541.6,5.49592]
[1748884542399,3.93374677,2541.7,2541.6,5.49592]
[1748884542602,3.93374677,2541.7,2541.6,6.82072]
[1748884544309,3.14725677,2541.7,2541.6,6.82072]
[1748884545112,3.14725677,2541.7,2541.6,11.82072]
[1748884545303,3.91798015,2542.0,2541.9,0.78643]
[1748884545505,3.91798015,2542.4,2542.2,0.78634]
[1748884545706,3.91798015,2542.4,2542.3,0.78631]
[1748884545904,0.78617,2542.8,2542.7,0.78616]
[1748884546407,0.78618,2542.7,2542.6,4.092]
[1748884546899,0.78621,2542.6,2542.5,0.00589484]
[1748884547105,0.78621,2542.6,2542.5,4.09789484]
[1748884547410,0.78621,2542.6,2542.5,4.88413484]
[1748884547798,2.34746712,2542.7,2542.6,0.78621]
[1748884548314,0.78621,2542.6,2542.5,8.09191484]
[1748884548905,3.13365712,2542.7,2542.6,0.78621]
[1748884549312,3.13363712,2542.8,2542.7,0.78618]
[1748884549509,0.78621,2542.6,2542.5,8.09191484]
[1748884552016,5.55526712,2542.9,2542.5,7.30569484]
[1748884552214,0.78621,2542.6,2542.5,8.09191484]
[1748884552414,0.78621,2542.7,2542.6,0.78619]
[1748884552813,0.78621,2542.6,2542.5,3.21369484]
[1748884553115,0.78621,2542.6,2542.5,7.30569484]
[1748884553311,0.78621,2542.6,2542.5,3.21369484]
[1748884553514,0.78621,2542.6,2542.5,0.00589484]
[1748884553515,3.99401,2542.6,2542.5,0.00589484]
[1748884554217,5.22791,2542.6,2542.5,0.79213484]
[1748884554415,23.65091,2542.6,2542.5,0.00589484]
[1748884554715,20.44311,2542.6,2542.5,0.79213484]
[1748884555110,3.13367712,2542.7,2542.6,0.78621]
[1748884555312,0.78621,2542.6,2542.5,0.79211484]
[1748884555816,3.13367712,2542.6,2542.5,0.79211484]
[1748884556018,3.13367712,2542.6,2542.5,0.00589484]
[1748884556420,0.78621,2542.6,2542.5,0.00589484]
[1748884556610,2.03901,2542.6,2542.5,0.00589484]
[1748884557113,4.38103928,2542.6,2542.5,0.00589484]
[1748884557313,2.03901,2542.6,2542.5,0.00589484]
[1748884558717,4.3810675,2542.6,2542.5,0.00589484]
[1748884559419,2.03901,2542.6,2542.5,0.00589484]
[1748884559920,0.78621,2542.6,2542.5,0.00589484]
[1748884560118,3.12850653,2542.6,2542.5,0.00589484]
[1748884560320,0.78621,2542.6,2542.5,0.00589484]
[1748884561119,2.12881,2542.6,2542.5,0.00589484]
[1748884561516,1.96563,2542.5,2541.4,3.2078]
[1748884561814,0.78651,2541.7,2541.6,0.78648]
[1748884562017,0.78651,2541.7,2541.6,2.10068]
[1748884562216,2.34382177,2541.8,2541.6,1.3142]
[1748884562413,3.13028177,2541.8,2541.7,1.2827]
[1748884563116,3.13028177,2541.9,2541.8,0.78646]
[1748884563318,0.78646,2541.8,2541.7,2.06917]
[1748884564020,3.13027177,2541.9,2541.8,0.78646]
[1748884564224,3.13027177,2541.9,2541.8,2.06916]
[1748884564422,2.34382177,2541.9,2541.8,2.06916]
[1748884564620,2.34382177,2542.0,2541.9,0.78643]
[1748884564922,0.78637,2542.1,2542.0,1.2827]
[1748884565517,0.7864,2542.0,2541.9,0.6525]
[1748884565717,0.7864,2542.0,2541.9,4.7375]
[1748884565918,0.7864,2542.0,2541.9,6.81663]
[1748884566119,0.7864,2542.1,2542.0,0.78639]
[1748884566316,0.7864,2542.1,2542.0,2.07909]
[1748884567028,0.7864,2542.1,2542.0,1.2927]
[1748884567226,0.7864,2542.1,2542.0,5.3777]
[1748884567515,0.7864,2542.1,2542.0,6.1641]
[1748884567925,0.7864,2542.1,2542.0,5.3777]
[1748884568121,0.7864,2542.1,2542.0,6.1641]
[1748884568619,0.7864,2542.1,2542.0,5.3777]
[1748884568825,0.7864,2542.1,2542.0,6.1641]
[1748884569321,0.78637,2542.2,2542.1,0.78635]
[1748884569523,2.34727967,2542.4,2542.3,0.78631]
[1748884569720,0.78628,2542.5,2542.4,0.78626]
[1748884570026,0.78624,2542.5,2542.4,6.0547]
[1748884570927,0.78624,2542.5,2542.4,6.84098]
[1748884571324,3.13351967,2542.6,2542.5,0.78624]
[1748884571529,3.13351967,2542.6,2542.5,2.09424]
[1748884573024,2.34727967,2542.6,2542.5,2.09424]
[1748884573328,3.13348967,2542.6,2542.5,2.09424]
[1748884574124,2.34727967,2542.6,2542.5,2.09424]
[1748884574630,3.13342967,2542.8,2542.7,0.78618]
[1748884575125,2.34727967,2542.8,2542.7,0.78618]
[1748884575526,0.78613,2542.9,2542.8,0.78615]
[1748884576335,0.78613,2542.9,2542.8,1.43905]
[1748884576935,0.78613,2542.9,2542.8,2.76995]
[1748884577234,0.78613,2542.9,2542.8,0.6529]
[1748884577933,0.78615,2542.8,2542.7,7.92927]
[1748884578536,0.78615,2542.8,2542.7,9.17117]
[1748884579436,0.78614,2542.9,2542.8,0.78613]
[1748884579934,4.69837446,2543.0,2542.9,0.78612]
[1748884580829,0.78612,2542.9,2542.8,6.11202]
[1748884582438,0.78612,2542.9,2542.8,2.02802]
[1748884582634,3.91226446,2543.0,2542.8,1.2419]
[1748884582826,0.79201484,2543.0,2542.9,0.78612]
[1748884583136,0.00589484,2543.0,2542.9,0.78612]
[1748884583338,0.00589484,2543.0,2542.9,2.09442]
[1748884583942,0.00589484,2543.0,2542.9,5.30222]
[1748884584131,3.90636962,2543.4,2543.1,0.78606]
[1748884584330,3.90636962,2543.4,2543.3,3.9938]
[1748884584736,0.78597,2543.4,2543.3,4.87]
[1748884585138,0.78596,2543.5,2543.4,0.78594]
[1748884585846,0.786,2543.3,2543.2,6.79321]
[1748884586141,0.786,2543.3,2543.2,5.50663]
[1748884586739,0.786,2543.3,2543.2,1.42263]
[1748884587048,0.786,2543.3,2543.2,0.78603]
[1748884588243,0.786,2543.3,2543.2,2.01393]
[1748884590038,0.78599,2543.4,2543.3,0.786]
[1748884590343,0.78599,2543.4,2543.3,2.1201]
[1748884590642,0.78596,2543.5,2543.4,0.78594]
[1748884591545,19.18796,2543.5,2543.4,0.78594]
[1748884592049,0.78596,2543.5,2543.4,0.78594]
[1748884592248,0.78596,2543.5,2543.4,1.41804]
[1748884592445,21.01530484,2543.6,2543.2,0.9113]
[1748884592649,0.786,2543.3,2543.2,1.69731]
[1748884592949,0.786,2543.3,2543.2,2.97451]
[1748884595748,5.2533969,2543.5,2543.4,0.78597]
[1748884596246,0.786,2543.4,2543.3,0.78597]
[1748884596449,0.786,2543.4,2543.3,2.07407]
[1748884596750,3.9158369,2543.4,2543.3,2.07407]
[1748884597147,3.9158369,2543.4,2543.3,1.2881]
[1748884597349,3.9158369,2543.4,2543.3,2.0741]
[1748884597545,3.9158369,2543.4,2543.3,1.2881]
[1748884598051,3.9158369,2543.4,2543.3,2.0741]
[1748884598247,3.9158369,2543.4,2543.3,1.2881]
[1748884598450,3.9158369,2543.4,2543.3,2.0741]
[1748884598848,3.9158369,2543.4,2543.3,1.2881]
[1748884599248,3.9158369,2543.4,2543.3,2.0741]
[1748884600546,0.786,2543.4,2543.3,2.0741]
[1748884601952,0.78596,2543.5,2543.4,0.78594]
[1748884602142,0.00589484,2543.6,2543.5,0.78594]
[1748884602345,0.79179484,2543.6,2543.5,4.86194]
[1748884602652,1.96485,2543.5,2543.3,0.786]
[1748884602851,2.10614,2543.5,2543.4,4.076]
[1748884603062,2.10614,2543.5,2543.4,4.86197]
[1748884603352,2.10614,2543.5,2543.4,6.381]
[1748884603541,7.10614,2543.5,2543.4,2.305]
[1748884603746,7.77484,2543.5,2543.4,2.305]
[1748884604643,13.26001221,2543.5,2543.4,2.305]
[1748884604955,13.26001221,2543.5,2543.4,1.66586714]
[1748884605554,8.26001221,2543.5,2543.4,1.66586714]
[1748884605744,8.26001221,2543.5,2543.4,0.44774924]
[1748884606148,26.65401221,2543.5,2543.4,0.44774924]
[1748884606646,2.77484,2543.5,2543.4,0.44774924]
[1748884606848,0.78594,2543.5,2543.4,0.44774924]
[1748884607049,0.78594,2543.5,2543.4,1.23371924]
[1748884607244,0.78594,2543.5,2543.4,0.44774924]
[1748884608149,0.78594,2543.5,2543.4,1.23371924]
[1748884608360,0.78594,2543.5,2543.4,0.44774924]
[1748884608656,4.70867167,2543.5,2543.4,2.51881924]
[1748884610858,4.70867167,2543.5,2543.4,2.58951713]
[1748884611955,3.92273167,2543.5,2543.4,2.58951713]
[1748884612256,4.70867167,2543.5,2543.4,2.58951713]
[1748884612458,0.78594,2543.5,2543.4,2.58951713]
[1748884612654,0.78594,2543.5,2543.4,1.80354713]
[1748884613058,4.70867167,2543.5,2543.4,1.80354713]
[1748884613358,4.70867167,2543.5,2543.4,2.58951713]
[1748884614257,4.70867167,2543.5,2543.4,1.80354713]
[1748884614753,4.70867167,2543.5,2543.4,0.51844713]
[1748884615054,6.01197167,2543.5,2543.4,0.51844713]
[1748884615459,2.08924,2543.5,2543.4,0.51844713]
[1748884615855,7.57441221,2543.5,2543.4,0.44774924]
[1748884616863,25.96341221,2543.5,2543.4,0.44774924]
[1748884617464,6.27111221,2543.5,2543.4,1.23371924]
[1748884617762,0.78594,2543.5,2543.4,0.44774924]
[1748884618763,2.05914,2543.5,2543.4,0.44774924]
[1748884618963,0.78594,2543.5,2543.4,0.44774924]
[1748884619555,0.78594,2543.5,2543.4,1.23371924]
[1748884619763,0.79182484,2543.6,2543.5,0.78594]
[1748884619956,0.00589484,2543.6,2543.5,2.04694]
[1748884621358,0.00589484,2543.6,2543.5,5.11284]
[1748884622258,3.92710709,2543.8,2543.7,0.78588]
[1748884622558,4.71294709,2543.8,2543.7,4.076]
[1748884622760,4.71294709,2543.8,2543.7,4.86188]
[1748884622954,4.71294709,2543.8,2543.7,5.49258]
[1748884623152,3.92710709,2543.8,2543.7,5.49258]
[1748884624160,3.92710709,2543.9,2543.8,0.78584]
[1748884624359,3.92710709,2543.9,2543.8,2.05494]
[1748884624663,4.71291709,2543.9,2543.8,2.05494]
[1748884625057,1.37541,2543.9,2543.8,2.05494]
[1748884625458,0.5896,2543.9,2543.8,2.05494]
[1748884626762,1.37541,2543.9,2543.8,2.05494]
[1748884627261,0.5896,2543.9,2543.8,2.05494]
[1748884627461,1.37541,2543.9,2543.8,2.05494]
[1748884627765,0.5896,2543.9,2543.8,2.73084]
[1748884627966,1.37541,2543.9,2543.8,2.73084]
[1748884628265,1.37541,2543.9,2543.8,2.05494]
[1748884629969,0.5896,2543.9,2543.8,2.05494]
[1748884630566,1.37541,2543.9,2543.8,2.05494]
[1748884631464,4.5090895,2543.9,2543.8,2.05494]
[1748884631865,0.5896,2543.9,2543.8,2.05494]
[1748884632364,5.2948995,2543.9,2543.8,6.12194]
[1748884632756,0.78584,2543.8,2543.7,0.6307]
[1748884632958,0.78584,2543.8,2543.7,5.48358]
[1748884633167,0.78584,2543.8,2543.7,4.6977]
[1748884633971,0.78584,2543.8,2543.7,5.48358]
[1748884634669,0.78584,2543.8,2543.7,1.41658]
[1748884635363,0.78584,2543.8,2543.7,0.6307]
[1748884635770,0.78591,2543.6,2543.5,3.85184]
[1748884635963,0.78591,2543.6,2543.5,5.09254]
[1748884636160,3.92227908,2543.6,2543.5,5.09254]
[1748884637963,3.13636908,2543.6,2543.5,5.09254]
[1748884638570,18.376,2543.7,2543.5,4.3066]
[1748884638772,18.376,2543.7,2543.6,2.06681]
[1748884638975,0.78588,2543.8,2543.7,0.78585]
[1748884639170,0.78588,2543.8,2543.7,2.06675]
[1748884640073,19.75144,2543.9,2543.8,0.78585]
[1748884640267,1.37544,2543.9,2543.8,2.06675]
[1748884640676,19.75144,2543.9,2543.8,2.06675]
[1748884642979,1.37544,2543.9,2543.8,2.69035]
[1748884643179,1.37544,2543.9,2543.8,3.31965]
[1748884643370,1.37544,2543.9,2543.8,6.46455]
[1748884643768,0.5896,2543.9,2543.8,6.46455]
[1748884645776,1.37541,2543.9,2543.8,10.53155]
[1748884646481,4.51280136,2543.9,2543.8,10.53155]
[1748884646779,4.51280136,2543.9,2543.8,9.90225]
[1748884647867,4.51280136,2543.9,2543.8,5.0494]
[1748884648181,1.37541,2543.9,2543.8,3.1449]
[1748884648376,6.5749246,2543.9,2543.8,3.1449]
[1748884650981,9.7827246,2543.9,2543.8,3.1449]
[1748884651282,9.7827246,2543.9,2543.8,3.93075]
[1748884652979,9.7827246,2543.9,2543.8,3.1449]
[1748884653882,9.7827246,2543.9,2543.8,3.93075]
[1748884654088,9.7827246,2543.9,2543.8,3.1449]
[1748884655391,9.7827246,2543.9,2543.8,3.93075]
[1748884655782,9.7827246,2543.9,2543.8,3.1449]
[1748884655986,9.7827246,2543.9,2543.8,3.93075]
[1748884656288,9.7827246,2543.9,2543.8,3.1449]
[1748884656484,9.7827246,2543.9,2543.8,3.93075]
[1748884656686,9.7827246,2543.9,2543.8,4.55935]
[1748884657298,9.7827246,2543.9,2543.8,3.7735]
[1748884657687,9.7827246,2543.9,2543.8,4.55935]
[1748884658097,8.5028246,2543.9,2543.8,4.55935]
[1748884658296,8.5028246,2543.9,2543.8,5.91755]
[1748884658497,8.5028246,2543.9,2543.8,5.1317]
[1748884659000,8.5028246,2543.9,2543.8,5.91755]
[1748884659496,8.5028246,2543.9,2543.8,4.55935]
[1748884659895,8.5028246,2543.9,2543.8,3.7735]
[1748884660199,8.5028246,2543.9,2543.8,4.55935]
[1748884661291,8.5028246,2543.9,2543.8,3.7735]
[1748884662502,8.5028246,2543.9,2543.8,4.55935]
[1748884662698,4.58321,2543.9,2543.8,3.7735]
[1748884663203,4.58321,2543.9,2543.8,4.55935]
[1748884663501,4.58321,2543.9,2543.8,3.7735]
[1748884664202,4.58321,2543.9,2543.8,4.55935]
[1748884664401,4.58321,2543.9,2543.8,3.7735]
[1748884664596,4.58321,2543.9,2543.8,4.55935]
[1748884664803,4.58321,2543.9,2543.8,3.7735]
[1748884665403,8.50932911,2543.9,2543.8,3.7735]
[1748884665605,4.58321,2543.9,2543.8,3.7735]
[1748884665806,4.58321,2543.9,2543.8,0.94930922]
[1748884666105,10.06838221,2543.9,2543.8,0.6286]
[1748884666700,6.86058221,2543.9,2543.8,0.6286]
[1748884670004,6.86058221,2543.9,2543.8,1.41445]
[1748884670201,6.07477221,2543.9,2543.8,3.33675]
[1748884670406,6.07477221,2543.9,2543.8,6.54455]
[1748884670407,4.51552053,2543.9,2543.8,6.54455]
[1748884670605,1.37542,2543.9,2543.8,6.54455]
[1748884670812,0.5896,2543.9,2543.8,6.54455]
[1748884671608,1.37542,2543.9,2543.8,6.54455]
[1748884672004,1.37542,2543.9,2543.8,2.5509]
[1748884672507,0.78585,2543.8,2543.7,3.6641]
[1748884672711,4.71058586,2543.8,2543.7,5.5893]
[1748884672907,0.78585,2543.8,2543.7,4.677]
[1748884673104,0.78585,2543.8,2543.7,8.735]
[1748884673704,0.78585,2543.8,2543.7,2.7518]
[1748884674805,6.27102221,2543.8,2543.7,2.7518]
[1748884675012,6.86062221,2543.8,2543.7,2.7518]
[1748884675208,1.37545,2543.8,2543.7,2.7518]
[1748884675612,5.30189336,2543.8,2543.7,2.7518]
[1748884675911,23.65989336,2543.8,2543.7,3.9969]
[1748884676112,1.37545,2543.8,2543.7,4.78278]
[1748884676315,1.37545,2543.8,2543.7,3.9969]
[1748884677112,1.37545,2543.8,2543.7,8.0549]
[1748884679215,5.30189336,2543.8,2543.7,3.9969]
[1748884683619,4.51604336,2543.8,2543.7,4.78278]
[1748884683921,3.73068911,2543.8,2543.7,12.99058]
[1748884684323,0.5896,2543.8,2543.7,12.99058]
[1748884684526,0.00589484,2544.0,2543.9,0.78582]
[1748884685218,0.00589484,2544.0,2543.9,2.07032]
[1748884689125,0.79167484,2544.0,2543.9,2.07032]
[1748884689827,0.00589484,2544.0,2543.9,2.07032]
[1748884690024,0.79167484,2544.0,2543.9,2.07032]
[1748884690219,0.00589484,2544.0,2543.9,2.07032]
[1748884693229,0.00589484,2544.0,2543.9,7.07032]
[1748884693524,3.14108911,2544.3,2544.0,0.78578]
[1748884693720,3.14108911,2544.4,2544.3,0.78569]
[1748884693919,3.14108911,2544.5,2544.4,0.78566]
[1748884694119,3.14108911,2544.5,2544.4,6.10426]
[1748884694318,3.14108911,2544.8,2544.5,1.96405]
[1748884694519,3.14698395,2544.9,2544.8,0.78554]
[1748884694720,3.14698395,2544.9,2544.8,8.04034]
[1748884694721,0.00589484,2544.9,2544.8,8.04034]
[1748884696431,3.14108911,2545.5,2544.8,12.2548]
[1748884696722,0.78537,2545.4,2545.3,0.78536]
[1748884696929,0.78537,2545.4,2545.3,4.83236]
[1748884697326,0.78534,2545.5,2545.4,0.78534]
[1748884697523,0.78532,2545.5,2545.4,2.07452]
[1748884698226,0.00589484,2545.7,2545.6,0.78529]
[1748884699128,0.79115484,2545.7,2545.6,1.2892]
[1748884699330,0.00589484,2545.7,2545.6,2.07449]
[1748884700529,0.78501,2546.6,2545.8,1.96308]
[1748884700832,0.6512,2546.9,2546.0,3.2078]
[1748884701029,0.78505,2546.4,2546.3,0.78506]
[1748884701234,0.78505,2546.4,2546.3,4.83106]
[1748884701529,1.64479375,2546.8,2546.4,0.78503]
[1748884701530,0.78503,2546.5,2546.4,0.78503]
[1748884701727,0.78503,2546.5,2546.4,2.01883]
[1748884701922,0.78501,2546.5,2546.4,2.01883]
[1748884702120,0.78889234,2546.6,2546.5,0.78501]
[1748884702829,0.00390234,2546.6,2546.5,0.78501]
[1748884703131,0.78888234,2546.6,2546.5,0.78501]
[1748884703626,0.00390234,2546.6,2546.5,0.78501]
[1748884704036,0.78888234,2546.6,2546.5,0.78501]
[1748884704427,0.00390234,2546.6,2546.5,0.78501]
[1748884705129,0.78888234,2546.6,2546.5,0.78501]
[1748884705325,0.78888234,2546.6,2546.5,4.045]
[1748884705533,0.78501,2546.5,2546.4,0.912]
[1748884705731,2.75681,2546.5,2546.4,0.912]
[1748884706530,7.75681,2546.5,2546.4,0.912]
[1748884708432,26.08281,2546.5,2546.4,0.912]
[1748884708627,21.08281,2546.5,2546.4,0.912]
[1748884709726,2.75681,2546.5,2546.4,0.912]
[1748884709933,21.08181,2546.5,2546.4,0.912]
[1748884710437,26.08181,2546.5,2546.4,0.912]
[1748884710734,26.08181,2546.5,2546.4,3.2667]
[1748884712129,26.07981,2546.5,2546.4,3.2667]
[1748884712330,1.9718,2546.5,2546.4,3.2667]
[1748884712536,0.00390234,2546.6,2546.5,0.78501]
[1748884713038,0.78888234,2546.6,2546.5,2.03161]
[1748884714036,0.00390234,2546.6,2546.5,2.03161]
[1748884715939,3.92644336,2547.3,2546.8,0.78492]
[1748884716138,3.2078,2547.4,2547.0,0.78484]
[1748884716139,0.78483,2547.1,2547.0,0.78484]
[1748884716335,7.09337,2547.4,2546.9,0.78486]